bitfinex/quotes_SOLUSD_20251007
["timestamp","ask_amount","ask_price","bid_price","bid_amount"]
[1759810789753,4.28779692,233.22,233.2,29.98]
[1759810790181,4.28761308,233.23,233.2,29.98]
[1759810790642,15.71664579,233.23,233.2,29.98]
[1759810792952,13.52130536,233.21,233.2,29.98]
[1759810793150,14.23130536,233.21,233.2,29.98]
[1759810793750,15.00664579,233.23,233.2,29.98]
[1759810793978,2.64483015,233.22,233.2,30.7]
[1759810794176,2.64483015,233.22,233.2,29.98]
[1759810794872,4.28798078,233.21,233.2,29.98]
[1759810798372,7.64281093,233.21,233.2,29.98]
[1759810800662,7.64281093,233.21,233.16,0.72]
[1759810800663,39.1627629,233.21,233.16,0.72]
[1759810800865,2.64483015,233.18,233.15,29.98]
[1759810801359,4.28871638,233.17,233.15,30.7]
[1759810802068,0.71,233.16,233.15,29.98]
[1759810802383,2.64483015,233.16,233.15,29.98]
[1759810803364,3.35483015,233.16,233.15,29.98]
[1759810803662,15.01179498,233.15,233.11,0.72]
[1759810803862,17.65662513,233.15,233.11,0.72]
[1759810804471,17.65662513,233.15,233.1,29.98]
[1759810804675,17.65662513,233.15,233.11,0.72]
[1759810804978,17.65662513,233.15,233.12,0.72]
[1759810806753,17.65662513,233.15,233.13,0.72]
[1759810807159,17.65662513,233.15,233.11,0.72]
[1759810807378,17.65662513,233.15,233.12,0.72]
[1759810807577,17.65662513,233.15,233.1,29.98]
[1759810807787,17.65662513,233.15,233.13,0.72]
[1759810808160,17.65662513,233.15,233.11,0.72]
[1759810808657,17.65662513,233.15,233.12,0.72]
[1759810809288,10.7227107,233.15,233.13,0.72]
[1759810809777,10.7227107,233.15,233.11,0.72]
[1759810810287,4.28890032,233.16,233.11,0.72]
[1759810810995,15.01115113,233.16,233.11,0.72]
[1759810811174,2.64483015,233.17,233.11,0.72]
[1759810811366,3.35483015,233.17,233.11,0.72]
[1759810812189,4.28890032,233.16,233.11,0.72]
[1759810812399,4.99890032,233.16,233.12,0.72]
[1759810813265,15.72115113,233.16,233.12,0.72]
[1759810813666,15.01115113,233.16,233.13,0.72]
[1759810813967,15.72115113,233.16,233.11,0.72]
[1759810814171,15.72115113,233.16,233.12,0.72]
[1759810814564,15.72115113,233.16,233.11,0.72]
[1759810814769,0.71,233.15,233.1,29.98]
[1759810814993,0.71,233.15,233.11,0.72]
[1759810815291,0.71,233.15,233.12,0.72]
[1759810815468,18.94361257,233.16,233.12,0.72]
[1759810815672,19.65361257,233.16,233.12,0.72]
[1759810817090,17.24887648,233.16,233.12,0.72]
[1759810817279,17.24887648,233.16,233.1,29.98]
[1759810817480,17.24887648,233.16,233.11,0.72]
[1759810817689,17.95887648,233.16,233.12,0.72]
[1759810818591,0.66,233.15,233.1,30.7]
[1759810818791,0.66,233.15,233.1,29.98]
[1759810818992,18.94361257,233.16,233.11,0.72]
[1759810819193,19.60361257,233.16,233.12,0.72]
[1759810820094,4.28926825,233.14,233.12,0.72]
[1759810821192,15.01179498,233.15,233.12,0.72]
[1759810821497,15.67179498,233.15,233.12,0.72]
[1759810822106,15.67179498,233.15,233.11,0.72]
[1759810823409,15.67179498,233.15,233.1,29.98]
[1759810823587,15.67179498,233.15,233.11,0.72]
[1759810823787,15.01179498,233.15,233.12,0.72]
[1759810826309,15.67179498,233.15,233.12,0.72]
[1759810826606,2.23772535,233.16,233.12,0.72]
[1759810826906,6.52669962,233.16,233.12,0.72]
[1759810827893,17.90895043,233.16,233.12,0.72]
[1759810828203,17.90895043,233.16,233.1,29.98]
[1759810828204,0.66,233.15,233.1,29.98]
[1759810828404,15.67243887,233.14,233.1,30.7]
[1759810828606,15.01243887,233.14,233.11,0.72]
[1759810828807,4.28926825,233.14,233.12,0.72]
[1759810829705,4.28926825,233.14,233.13,0.72]
[1759810831512,4.28908428,233.15,233.1,29.98]
[1759810831700,4.28908428,233.15,233.13,0.72]
[1759810832211,4.28908428,233.15,233.11,0.72]
[1759810832386,4.94908428,233.15,233.11,0.72]
[1759810833400,4.94908428,233.15,233.1,29.98]
[1759810833401,4.28908428,233.15,233.1,29.98]
[1759810833601,4.28908428,233.15,233.12,0.72]
[1759810834010,4.28908428,233.15,233.13,0.72]
[1759810834192,4.28908428,233.15,233.14,0.72]
[1759810834514,4.28908428,233.15,233.1,29.98]
[1759810834706,4.28908428,233.15,233.11,0.72]
[1759810837108,2.23772535,233.16,233.11,0.72]
[1759810837618,0.68,233.15,233.12,0.66]
[1759810837994,2.23772535,233.16,233.12,0.66]
[1759810838194,2.91772535,233.16,233.12,0.66]
[1759810839311,6.52668661,233.16,233.1,29.98]
[1759810839508,4.28926825,233.14,233.1,30.64]
[1759810839818,4.28926825,233.14,233.11,0.66]
[1759810840205,4.28926825,233.14,233.12,0.66]
[1759810841220,4.28908428,233.15,233.12,0.66]
[1759810842218,4.96908428,233.15,233.12,0.66]
[1759810842421,4.96908428,233.15,233.1,30.64]
[1759810842727,4.96908428,233.15,233.11,0.66]
[1759810843720,4.96908428,233.15,233.12,0.66]
[1759810844524,4.96908428,233.15,233.1,29.98]
[1759810844698,4.96908428,233.15,233.11,0.66]
[1759810845202,4.28945223,233.13,233.11,0.66]
[1759810845417,4.28945223,233.13,233.1,29.98]
[1759810845615,4.28945223,233.13,233.1,30.64]
[1759810846629,4.28945223,233.13,233.1,29.98]
[1759810846821,4.28908428,233.15,233.11,0.66]
[1759810847127,0.68,233.14,233.11,0.66]
[1759810847329,0.68,233.14,233.1,29.98]
[1759810847627,0.68,233.14,233.11,0.66]
[1759810848229,0.68,233.14,233.1,29.98]
[1759810848430,0.72,233.13,233.1,30.7]
[1759810848616,5.00908428,233.15,233.1,30.7]
[1759810848923,0.72,233.14,233.1,29.98]
[1759810849131,5.00908428,233.15,233.11,0.72]
[1759810849626,5.00908428,233.15,233.03,31.52790842]
[1759810849627,1.69473609,233.12,233.06,0.72]
[1759810849939,2.41473609,233.11,233.07,29.94]
[1759810850137,0.72,233.1,233.08,29.94]
[1759810850804,4.29018833,233.09,233.08,29.94]
[1759810852824,4.29000429,233.1,233.08,29.94]
[1759810854417,5.01000429,233.1,233.08,29.94]
[1759810855330,4.29000429,233.1,233.08,29.94]
[1759810855912,5.01000429,233.1,233.08,29.94]
[1759810856113,4.29000429,233.1,233.08,29.94]
[1759810856332,4.29000429,233.1,233.08,30.66]
[1759810857128,4.28974557,233.12,233.09,0.72]
[1759810857519,4.28974557,233.12,233.08,29.94]
[1759810857710,4.28974557,233.12,233.09,0.72]
[1759810860533,4.28974557,233.12,233.1,0.72]
[1759810860720,4.28974557,233.12,233.11,0.72]
[1759810860927,4.28974557,233.12,233.09,0.72]
[1759810861241,4.28974557,233.12,233.1,0.72]
[1759810862818,4.28974557,233.12,233.08,30.66]
[1759810863018,4.28974557,233.12,233.09,0.72]
[1759810863921,0.72,233.11,233.08,29.94]
[1759810865028,0.72,233.11,233.08,30.66]
[1759810865213,4.29000429,233.1,233.08,30.66]
[1759810865416,5.01000429,233.1,233.08,29.94]
[1759810865618,4.29000429,233.1,233.08,29.94]
[1759810866343,4.28963623,233.12,233.09,0.72]
[1759810866729,5.00963623,233.12,233.08,29.94]
[1759810867032,0.72,233.11,233.08,29.94]
[1759810868145,5.00993784,233.11,233.08,29.94]
[1759810868327,4.28993784,233.11,233.09,0.72]
[1759810868828,4.28993784,233.11,233.08,29.94]
[1759810869029,4.28993784,233.11,233.08,30.66]
[1759810869843,4.28993784,233.11,233.08,29.94]
[1759810870040,4.28993784,233.11,233.09,0.72]
[1759810870234,4.28993784,233.11,233.08,29.94]
[1759810870660,4.28993784,233.11,233.08,30.66]
[1759810871346,0.72,233.11,233.08,30.66]
[1759810872641,4.28963623,233.12,233.08,30.66]
[1759810872842,5.00963623,233.12,233.08,30.66]
[1759810873045,4.28963623,233.12,233.08,30.66]
[1759810873340,5.00963623,233.12,233.08,30.66]
[1759810875544,5.00963623,233.12,233.09,0.72]
[1759810875746,4.28963623,233.12,233.09,0.72]
[1759810876334,5.00963623,233.12,233.09,0.72]
[1759810877230,17.88544901,233.12,233.09,0.72]
[1759810877429,6.52736087,233.13,233.1,0.72]
[1759810877637,19.40262105,233.13,233.1,0.72]
[1759810878031,19.40262105,233.13,233.08,29.94]
[1759810878032,6.52736087,233.13,233.08,29.94]
[1759810878339,6.52736087,233.13,233.09,0.72]
[1759810878641,6.52736087,233.13,233.08,29.94]
[1759810878842,6.52736087,233.13,233.09,0.7]
[1759810879036,6.52736087,233.13,233.1,0.7]
[1759810879235,2.2378975,233.13,233.11,0.7]
[1759810879448,4.28889877,233.17,233.12,29.94]
[1759810879741,17.86250144,233.17,233.13,0.7]
[1759810879929,0.7,233.16,233.13,0.7]
[1759810880625,17.16250144,233.17,233.14,0.7]
[1759810881044,4.28889877,233.17,233.14,0.7]
[1759810882047,4.98889877,233.17,233.14,0.7]
[1759810882231,4.28889877,233.17,233.14,0.7]
[1759810882437,4.28889877,233.17,233.12,29.94]
[1759810882438,2.2376118,233.18,233.15,0.7]
[1759810882627,2.2376118,233.18,233.16,30.62]
[1759810884749,2.2376118,233.18,233.16,29.92]
[1759810884948,3.34858886,233.17,233.07,0.7]
[1759810885148,2.64858886,233.14,233.08,29.92]
[1759810885447,3.34858886,233.13,233.08,29.92]
[1759810885660,0.7,233.12,233.08,29.92]
[1759810885842,4.29000429,233.1,233.08,29.92]
[1759810886045,4.99000429,233.1,233.08,29.92]
[1759810888943,0.7,233.09,233.08,29.92]
[1759810889251,3.34858886,233.09,233.08,29.92]
[1759810889447,14.22506407,233.09,233.08,29.92]
[1759810889937,11.57647521,233.09,233.08,29.92]
[1759810890649,15.86666354,233.09,233.08,29.92]
[1759810893549,18.5152524,233.09,233.08,29.92]
[1759810894461,15.86666354,233.09,233.08,29.92]
[1759810898354,18.5152524,233.09,233.08,29.92]
[1759810902460,17.8152524,233.09,233.08,29.92]
[1759810906563,15.16666354,233.09,233.08,30.58]
[1759810906769,4.29018833,233.09,233.08,30.58]
[1759810907144,4.29018833,233.09,233.08,29.92]
[1759810909868,4.29018833,233.09,233.08,30.64]
[1759810910166,6.52848577,233.09,233.08,30.64]
[1759810911575,6.52848577,233.09,233.08,29.92]
[1759810915368,6.52848577,233.09,233.08,30.64]
[1759810917471,6.52848577,233.09,233.08,29.92]
[1759810918580,6.52848577,233.09,233.08,30.64]
[1759810919586,19.40540389,233.09,233.08,30.64]
[1759810920279,19.40540389,233.09,233.08,29.92]
[1759810920657,20.10540389,233.09,233.08,29.92]
[1759810920856,19.40540389,233.09,233.08,29.92]
[1759810921576,19.40540389,233.09,233.08,30.64]
[1759810927661,20.10540389,233.09,233.08,29.92]
[1759810928100,19.40540389,233.09,233.08,29.92]
[1759810928563,22.75399275,233.09,233.08,29.92]
[1759810928763,33.47946359,233.09,233.07,29.9]
[1759810928967,0.7,233.08,233.07,29.9]
[1759810929164,3.34858886,233.08,233.07,29.9]
[1759810929373,16.22661251,233.08,233.07,29.9]
[1759810929685,15.52661251,233.08,233.07,29.9]
[1759810929884,20.51698491,233.08,233.07,29.9]
[1759810930896,17.86839605,233.08,233.07,29.9]
[1759810934091,20.51698491,233.08,233.07,29.9]
[1759810937204,19.56460231,233.08,233.07,29.9]
[1759810938000,17.16839605,233.08,233.07,29.9]
[1759810942676,4.2903724,233.08,233.07,30.56]
[1759810951994,2.23829744,233.09,233.07,30.56]
[1759810952194,2.23829744,233.09,233.08,0.66]
[1759810955091,6.52848577,233.09,233.08,0.66]
[1759810955414,2.23829744,233.09,233.08,0.66]
[1759810958918,6.52848577,233.09,233.08,0.66]
[1759810959215,4.29000767,233.1,233.08,0.66]
[1759810961606,4.28982025,233.11,233.07,29.9]
[1759810961807,4.28982025,233.11,233.09,0.72]
[1759810962406,4.28982025,233.11,233.07,29.9]
[1759810962407,2.23796358,233.12,233.1,0.72]
[1759810962607,2.23796358,233.12,233.03,10.72809552]
[1759810962608,2.23796358,233.12,233.11,30.6]
[1759810964224,6.52767803,233.12,233.11,30.6]
[1759810965017,6.52767803,233.12,233.11,29.88]
[1759810966723,6.52767803,233.12,233.11,30.6]
[1759810968631,4.28910578,233.15,233.11,30.6]
[1759810968811,4.28910578,233.15,233.12,0.67]
[1759810969713,4.28890032,233.16,233.12,0.67]
[1759810972835,2.23752412,233.17,233.12,4.95959664]
[1759810973131,6.5262487,233.17,233.13,0.67]
[1759810974217,6.5262487,233.17,233.14,0.67]
[1759810974430,6.5262487,233.17,233.15,29.88]
[1759810977636,7.2162487,233.17,233.15,29.88]
[1759810977817,6.5262487,233.17,233.15,29.88]
[1759810979431,0.69,233.16,233.15,29.88]
[1759810980245,6.5262487,233.17,233.15,29.88]
[1759810980616,0.69,233.16,233.15,29.88]
[1759810980918,2.38620626,233.16,233.15,29.88]
[1759810981438,28.2738326,233.16,233.07,0.67]
[1759810981632,1.69620626,233.13,233.07,0.67]
[1759810981831,0.69,233.12,233.07,0.67]
[1759810982034,2.38620626,233.12,233.05,0.67]
[1759810982516,2.38620626,233.12,233.06,29.86]
[1759810982838,0.69,233.11,233.06,29.86]
[1759810983042,4.29018833,233.09,233.06,30.53]
[1759810987051,12.87581278,233.14,233.06,30.53]
[1759810987052,4.28926825,233.14,233.07,0.67]
[1759810988950,4.28890032,233.16,233.08,4.2903724]
[1759810989148,4.28890032,233.16,233.09,0.67]
[1759810989348,4.28890032,233.16,233.1,29.86]
[1759810989558,4.28890032,233.16,233.11,0.67]
[1759810989757,4.97890032,233.16,233.12,0.67]
[1759810990344,4.28890032,233.16,233.13,0.67]
[1759810990546,4.28890032,233.16,233.14,29.86]
[1759810990786,4.28890032,233.16,233.15,0.67]
[1759810991058,4.97816466,233.2,233.15,0.67]
[1759810991257,4.28816466,233.2,233.15,0.67]
[1759810991459,0.69,233.19,233.15,0.67]
[1759810991651,0.69,233.19,233.14,29.86]
[1759810991833,0.69,233.19,233.15,0.67]
[1759810992244,4.28853246,233.18,233.14,29.86]
[1759810992439,4.28778437,233.23,233.16,0.67]
[1759810992648,4.28706164,233.26,233.16,0.67]
[1759810992853,2.23680093,233.25,233.16,0.67]
[1759810993755,4.28742925,233.24,233.17,4.28871638]
[1759810993949,4.28742925,233.24,233.18,0.67]
[1759810994148,4.28742925,233.24,233.19,29.86]
[1759810994458,4.97742925,233.24,233.2,0.67]
[1759810996941,4.97742925,233.24,233.19,29.86]
[1759810997146,4.97742925,233.24,233.2,0.67]
[1759811005063,4.96768714,233.23,233.2,0.67]
[1759811006278,4.28742925,233.24,233.2,0.67]
[1759811006450,4.96742925,233.24,233.2,0.67]
[1759811006778,4.96742925,233.24,233.19,29.86]
[1759811006953,4.96742925,233.24,233.2,0.69]
[1759811007156,0.68,233.28,233.21,0.69]
[1759811007355,4.28651035,233.29,233.21,0.69]
[1759811007553,4.96651035,233.29,233.21,0.69]
[1759811007770,4.28651035,233.29,233.21,0.69]
[1759811008380,0.68,233.29,233.21,4.97794014]
[1759811008579,0.68,233.29,233.22,0.69]
[1759811009082,0.68,233.29,233.2,0.69]
[1759811010288,15.00342935,233.28,233.2,0.69]
[1759811010577,0.68,233.27,233.2,0.69]
[1759811011369,4.28706164,233.26,233.2,0.69]
[1759811011571,4.96706164,233.26,233.2,0.69]
[1759811012261,15.68471575,233.26,233.18,0.69]
[1759811012462,18.33004301,233.26,233.19,29.84]
[1759811012657,0.68,233.25,233.19,29.84]
[1759811012873,0.68,233.24,233.19,29.84]
[1759811013479,0.68,233.23,233.19,29.84]
[1759811013967,0.68,233.23,233.19,30.53]
[1759811014788,4.96778362,233.23,233.19,30.53]
[1759811014985,0.68,233.25,233.2,0.69]
[1759811015185,7.20258443,233.31,233.2,0.69]
[1759811015492,0.68,233.31,233.2,0.69]
[1759811015693,2.43614758,233.33,233.22,20.8]
[1759811015991,0.2,233.33,233.26,20.8]
[1759811016162,0.2,233.33,233.3,20.8]
[1759811016585,0.2,233.33,233.31,0.69]
[1759811016769,0.2,233.33,233.32,29.84]
[1759811016971,0.2,233.33,233.32,30.51]
[1759811018580,0.2,233.33,233.32,41.38647521]
[1759811019393,0.2,233.33,233.32,51.31]
[1759811019571,0.2,233.33,233.32,21.47]
[1759811019768,0.2,233.33,233.32,51.31]
[1759811022369,0.2,233.33,233.32,62.18647521]
[1759811028309,0.2,233.33,233.32,63.90045485]
[1759811029183,0.2,233.33,233.32,76.77045485]
[1759811029399,0.2,233.33,233.32,63.90045485]
[1759811030976,0.2,233.33,233.32,68.18641404]
[1759811031600,1e-08,233.34,233.33,10.87647521]
[1759811031783,1e-08,233.34,233.33,12.00505276]
[1759811031975,0.2,233.36,233.35,31.67647521]
[1759811032176,0.2,233.36,233.35,61.49647521]
[1759811032373,0.2,233.36,233.35,62.19647521]
[1759811033101,0.2,233.36,233.35,31.67647521]
[1759811033288,0.2,233.36,233.35,61.49647521]
[1759811033684,0.2,233.36,233.35,41.39647521]
[1759811033883,0.2,233.36,233.35,62.19647521]
[1759811034189,0.2,233.36,233.35,61.49647521]
[1759811035484,0.91,233.36,233.35,50.62]
[1759811036178,0.2,233.36,233.35,50.62]
[1759811039490,0.91,233.36,233.35,50.62]
[1759811039685,0.91,233.36,233.35,20.8]
[1759811039999,0.91,233.36,233.35,50.62]
[1759811041208,0.91,233.36,233.35,29.82]
[1759811044917,0.91,233.36,233.33,20.8]
[1759811045078,0.91,233.36,233.34,29.82]
[1759811045511,0.2,233.36,233.34,29.82]
[1759811047095,0.91,233.36,233.34,29.82]
[1759811047284,0.91,233.36,233.33,20.8]
[1759811047506,0.91,233.36,233.34,29.82]
[1759811047706,0.91,233.36,233.35,29.82]
[1759811048010,0.71,233.35,233.33,20.8]
[1759811048213,4.48522454,233.36,233.34,29.82]
[1759811048411,4.48522454,233.36,233.3,33.4]
[1759811048412,4.48522454,233.36,233.35,29.82]
[1759811048601,15.1982859,233.36,233.3,33.4]
[1759811048910,0.71,233.35,233.31,29.82]
[1759811049092,0.71,233.34,233.31,29.82]
[1759811049597,0.71,233.33,233.31,29.82]
[1759811049812,0.71,233.32,233.31,29.82]
[1759811050717,4.99595919,233.32,233.31,29.82]
[1759811051018,0.2,233.36,233.31,30.52]
[1759811051231,0.2,233.36,233.32,0.7]
[1759811051402,0.2,233.36,233.35,31.67647521]
[1759811051598,0.2,233.36,233.35,62.21647521]
[1759811051926,0.2,233.36,233.35,0.7]
[1759811052120,0.2,233.36,233.35,51.36]
[1759811054133,0.2,233.36,233.35,50.68]
[1759811060715,0.2,233.36,233.35,20.8]
[1759811061014,0.2,233.36,233.35,50.66]
[1759811061719,0.88,233.36,233.3,0.68]
[1759811061932,5.16522454,233.36,233.28,0.68]
[1759811062135,5.16522454,233.36,233.29,29.86]
[1759811062342,0.68,233.35,233.28,0.68]
[1759811062642,0.68,233.35,233.29,29.86]
[1759811062842,0.68,233.34,233.29,29.86]
[1759811063019,0.68,233.33,233.29,29.86]
[1759811063219,0.68,233.32,233.29,29.86]
[1759811063750,0.68,233.34,233.29,29.86]
[1759811064039,4.96581079,233.33,233.29,29.86]
[1759811064247,4.96581079,233.33,233.29,30.54]
[1759811064430,0.68,233.33,233.29,30.54]
[1759811066438,0.68,233.33,233.29,29.86]
[1759811066643,0.2,233.36,233.3,0.68]
[1759811066851,0.2,233.36,233.31,50.66]
[1759811067029,0.2,233.36,233.32,0.68]
[1759811067357,0.2,233.36,233.33,29.86]
[1759811067521,0.2,233.36,233.34,0.68]
[1759811067721,0.2,233.36,233.35,29.86]
[1759811068327,0.2,233.36,233.35,30.54]
[1759811069722,0.2,233.36,233.35,29.86]
[1759811073842,0.2,233.36,233.35,30.54]
[1759811074858,0.2,233.36,233.35,34.82540818]
[1759811075455,0.2,233.36,233.35,46.1304242]
[1759811078132,0.2,233.38,233.37,10.87647521]
[1759811078353,0.2,233.38,233.37,41.1849793]
[1759811078635,0.2,233.38,233.37,41.8449793]
[1759811078844,1e-08,233.38,233.37,41.8449793]
[1759811079137,1e-08,233.38,233.37,46.13002022]
[1759811079338,0.2,233.39,233.38,10.87647521]
[1759811079537,0.2,233.39,233.38,11.53647521]
[1759811080241,0.2,233.39,233.38,15.82133252]
[1759811084048,0.2,233.39,233.38,45.70133252]
[1759811084243,0.2,233.39,233.38,46.12981825]
[1759811084774,0.2,233.39,233.38,79.50981825]
[1759811095769,0.2,233.39,233.38,48.96981825]
[1759811095972,0.2,233.39,233.38,78.38133252]
[1759811099369,0.2,233.39,233.38,79.07133252]
[1759811100481,0.2,233.39,233.38,79.49981825]
[1759811108482,1e-08,233.4,233.38,79.49981825]
[1759811108785,1e-08,233.4,233.39,11.56647521]
[1759811110196,1e-08,233.4,233.39,15.16114893]
[1759811110486,1e-08,233.41,233.4,10.87647521]
[1759811110670,0.2,233.46,233.44,10.87647521]
[1759811110873,0.2,233.46,233.45,29.8]
[1759811111087,0.2,233.46,233.45,40.67647521]
[1759811112008,1.69064727,233.61,233.48,31.67647521]
[1759811112292,1.69064727,233.61,233.49,34.08283866]
[1759811112493,1.69064727,233.61,233.49,37.48772613]
[1759811112966,10.70205479,233.6,233.49,37.48772613]
[1759811113166,10.70205479,233.6,233.48,31.67647521]
[1759811113390,12.39270206,233.6,233.49,29.8]
[1759811113875,0.55,233.59,233.49,29.8]
[1759811114077,0.55,233.58,233.49,29.8]
[1759811114262,12.39270206,233.6,233.49,29.8]
[1759811114263,0.55,233.57,233.49,29.8]
[1759811114661,0.55,233.56,233.49,29.8]
[1759811115075,0.55,233.55,233.49,47.14332809]
[1759811115468,14.9828767,233.6,233.49,47.14332809]
[1759811115673,0.55,233.59,233.49,47.14332809]
[1759811115898,0.55,233.58,233.49,47.14332809]
[1759811116090,0.55,233.57,233.49,47.14332809]
[1759811116265,4.28173838,233.55,233.49,47.14332809]
[1759811116463,0.55,233.54,233.49,47.14332809]
[1759811116667,0.55,233.53,233.49,47.14332809]
[1759811117291,0.55,233.53,233.49,13.06049517]
[1759811117494,4.28173838,233.55,233.48,20.8]
[1759811117789,0.55,233.52,233.49,29.8]
[1759811117993,0.55,233.55,233.49,29.8]
[1759811118797,4.83183641,233.55,233.49,29.8]
[1759811119490,4.83183641,233.55,233.48,25.08301764]
[1759811119798,4.83183641,233.55,233.5,29.8]
[1759811120092,0.55,233.54,233.5,29.8]
[1759811120680,10.70317565,233.62,233.5,29.8]
[1759811120681,0.55,233.6,233.51,0.66]
[1759811120996,4.83082191,233.6,233.53,20.8]
[1759811121197,4.83082191,233.6,233.54,29.8]
[1759811122994,0.55,233.59,233.51,20.8]
[1759811123198,0.55,233.58,233.52,29.8]
[1759811123497,3.18780575,233.57,233.48,12.75013825]
[1759811123703,0.55,233.56,233.49,29.8]
[1759811123878,0.55,233.56,233.5,29.82]
[1759811124389,27.83276854,233.6,233.5,29.82]
[1759811124390,0.55,233.59,233.5,29.82]
[1759811124691,0.55,233.58,233.5,29.82]
[1759811125088,4.28137175,233.57,233.5,29.82]
[1759811125792,14.98480112,233.57,233.49,20.8]
[1759811125979,14.98480112,233.57,233.5,29.82]
[1759811129803,14.98480112,233.57,233.49,21.46]
[1759811129980,14.98480112,233.57,233.5,29.82]
[1759811131404,14.98480112,233.57,233.49,21.46]
[1759811131577,14.98480112,233.57,233.5,29.8]
[1759811131778,3.18780575,233.56,233.49,20.8]
[1759811131978,3.18780575,233.55,233.49,20.8]
[1759811132209,3.18780575,233.54,233.48,20.8]
[1759811132379,2.63780575,233.54,233.5,29.82]
[1759811132687,0.55,233.53,233.5,29.82]
[1759811133699,4.28228845,233.52,233.5,29.82]
[1759811134286,4.28228845,233.52,233.5,30.48]
[1759811134605,11.25372166,233.57,233.5,30.48]
[1759811134606,4.28173838,233.55,233.51,0.66]
[1759811134904,4.28173838,233.55,233.5,29.82]
[1759811135102,4.83173838,233.55,233.5,29.82]
[1759811135503,14.98608434,233.55,233.5,29.82]
[1759811135688,14.98736778,233.53,233.5,29.82]
[1759811136004,15.53736778,233.53,233.5,29.82]
[1759811136894,14.98736778,233.53,233.5,29.82]
[1759811138105,0.55,233.55,233.5,29.82]
[1759811138407,5.0302915,233.63,233.53,20.8]
[1759811138612,5.0302915,233.63,233.54,30.56]
[1759811138794,5.0302915,233.63,233.55,0.72]
[1759811139189,15.73097206,233.63,233.55,0.72]
[1759811139711,15.18097206,233.63,233.55,0.72]
[1759811140886,15.73097206,233.63,233.55,0.72]
[1759811141091,0.55,233.62,233.55,0.72]
[1759811142908,4.28063867,233.61,233.55,0.72]
[1759811144407,11.45068056,233.63,233.55,0.72]
[1759811144408,4.28045544,233.62,233.55,0.72]
[1759811146021,4.48028576,233.63,233.55,5.00172994]
[1759811146194,4.48028576,233.63,233.57,20.8]
[1759811146395,4.48028576,233.63,233.58,30.54]
[1759811146612,4.48028576,233.63,233.59,0.72]
[1759811146809,4.48028576,233.63,233.6,0.72]
[1759811147411,0.2,233.63,233.61,0.72]
[1759811147715,0.2,233.63,233.62,30.54]
[1759811148101,0.2,233.63,233.62,51.34]
[1759811164525,0.2,233.63,233.62,21.52]
[1759811164729,0.2,233.63,233.62,51.3]
[1759811165614,0.2,233.63,233.62,55.58045544]
[1759811168114,0.2,233.63,233.62,25.80045544]
[1759811168313,0.2,233.63,233.62,55.58045544]
[1759811176833,2.63780575,233.73,233.62,55.58045544]
[1759811176834,2.23224922,233.78,233.66,20.8]
[1759811177130,0.72,233.75,233.7,20.8]
[1759811177332,0.72,233.74,233.71,29.78]
[1759811177724,0.1,233.76,233.71,29.78]
[1759811177921,0.72,233.74,233.71,29.78]
[1759811178309,0.68,233.73,233.71,29.78]